{"text_format":"2","workbook":"xlsx","n_sheets":6,"sheets":["Resumo do Orçamento","Orçamento Sintético","CPUs","Cronograma Físico-financeiro","BDI","ENCARGOS SOCIAIS"],"not_rendered":{"charts":0,"images":1,"macros":0,"external_links":1,"defined_names":42,"comments":0,"pivot_tables":0},"unopened":[],"bounds":{"document_bytes":16777216,"sheet_cells":100000,"run_cost":"one","rows_first":2000,"rows_last":500,"rows_between":2000,"halvings":0,"cell_chars":16384,"cell_head_chars":4096},"cells_cut":0,"cells_raw":0,"read":"whole","date_system":"1900"}

{"sheet":"Resumo do Orçamento","index":0,"n_rows":17,"n_cols":11,"rows_kept":17,"cut":false,"hidden":false,"merged":[[0,5,0,7],[0,8,0,10],[1,5,1,7],[1,8,1,10],[2,0,2,10],[3,0,3,2],[3,3,3,8],[4,0,4,2],[4,3,4,8],[5,0,5,2],[5,3,5,8],[11,3,11,8],[6,0,6,2],[6,3,6,8],[7,0,7,2],[7,3,7,8],[8,0,8,2],[8,3,8,8],[9,0,9,2],[9,3,9,8],[10,0,10,2],[10,3,10,8],[11,0,11,2],[12,0,12,2],[12,3,12,8],[14,0,14,2],[14,6,14,7],[14,8,14,10],[15,0,15,2],[15,6,15,7],[15,8,15,10],[16,0,16,2],[16,6,16,7],[16,8,16,10]]}
[null,null,null,"Obra","Bancos","B.D.I.",null,null,"Encargos Sociais"]
[null,null,null,"Reforma do prédio-sede da Associação dos Produtores de Polpa de Frutas do Povoado Nova Descoberta, Boquim-SE","SINAPI - 06/2022 - Sergipe\nORSE - 06/2022 - Sergipe\n","29,79%",null,null,"Desonerado: \nHorista: 82,52%\nMensalista: 46,54%"]
["Planilha Orçamentária Resumida"]
["Item",null,null,"Descrição",{"$nulls":5},"Total","Peso (%)"]
[" 1 ",null,null,"CANTEIRO DE OBRA",{"$nulls":5},11482.02,9.1694528221213906E-2]
[" 2 ",null,null,"SERVIÇOS PRELIMINARES",{"$nulls":5},3336.46,2.6644712831797136E-2]
[" 3 ",null,null,"ALVENARIAS",{"$nulls":5},14082.17,0.11245912604933032]
[" 4 ",null,null,"COBERTURA",{"$nulls":5},41463.910000000003,0.33112759476615383]
[" 5 ",null,null,"ESQUADRIAS",{"$nulls":5},4475.6099999999997,3.5741877078436297E-2]
[" 6 ",null,null,"INSTALAÇÕES HIDRÁULICAS",{"$nulls":5},847.43,6.7675107734094953E-3]
[" 7 ",null,null,"REVESTIMENTOS",{"$nulls":5},32230.26,0.25738837636122053]
[" 8 ",null,null,"INSTALAÇÕES ELÉTRICAS",{"$nulls":5},5762.7,4.6020478781642025E-2]
[" 9 ",null,null,"PINTURAS",{"$nulls":5},11539.78,9.2155795136796462E-2]
[]
[{"$nulls":6},"Total sem BDI",null,96488.58]
[{"$nulls":6},"Total do BDI",null,28731.759999999998]
[{"$nulls":6},"Total Geral",null,125220.34]

{"sheet":"Orçamento Sintético","index":1,"n_rows":47,"n_cols":10,"rows_kept":47,"cut":false,"hidden":false,"merged":[[0,4,0,5],[0,6,0,7],[0,8,0,9],[1,4,1,5],[1,6,1,7],[1,8,1,9],[46,0,46,2],[46,5,46,6],[46,7,46,9],[2,0,2,9],[44,0,44,2],[44,5,44,6],[44,7,44,9],[45,0,45,2],[45,5,45,6],[45,7,45,9]]}
[null,null,null,"Obra","Bancos",null,"B.D.I.",null,"Encargos Sociais"]
[null,null,null,"Reforma do prédio-sede da Associação dos Produtores de Polpa de Frutas do Povoado Nova Descoberta, Boquim-SE","SINAPI - 06/2022 - Sergipe\nORSE - 06/2022 - Sergipe\n",null,"29,79%",null,"Desonerado: \nHorista: 82,52%\nMensalista: 46,54%"]
["Orçamento Sintético"]
["Item","Código","Banco","Descrição","Und","Quant.","Valor Unit","Valor Unit com BDI","Total","Peso (%)"]
[" 1 ",null,null,"CANTEIRO DE OBRA",{"$nulls":4},11482.02,9.1694528221213906E-2]
[" 1.1 "," CODEVASF  245 ","Próprio","Mobilização/Desmobilização de Pessoal e Equipamentos (CDVSF) 1","und",1,1031.6400000000001,1338.96,1338.96,1.0692831532001909E-2]
[" 1.2 "," CODEVASF  266 ","Próprio","Administração Local","und",1,6100.38,7917.68,7917.68,6.322998324393625E-2]
[" 1.3 "," 74209/001 ","SINAPI","PLACA DE OBRA EM CHAPA DE ACO GALVANIZADO","m²",4.5,381.03,494.53,2225.38,1.7771713445275745E-2]
[" 2 ",null,null,"SERVIÇOS PRELIMINARES",{"$nulls":4},3336.46,2.6644712831797136E-2]
[" 2.1 "," 18 ","ORSE","Demolição de piso cerâmico ou ladrilho","m2",150.88,10.78,13.99,2110.81,1.6856766241011643E-2]
[" 2.2 "," 97631 ","SINAPI","DEMOLIÇÃO DE ARGAMASSAS, DE FORMA MANUAL, SEM REAPROVEITAMENTO. AF_12/2017","m²",110.17,2.38,3.08,339.32,2.7097834105864909E-3]
[" 2.3 "," 73859/002 ","SINAPI","CAPINA E LIMPEZA MANUAL DE TERRENO","m²",20.66,1.26,1.63,33.67,2.6888602921857583E-4]
[" 2.4 "," 26 ","ORSE","Coleta e carga manuais de entulho","m³",10,13.73,17.82,178.2,1.4230914881719695E-3]
[" 2.5 "," 13197 ","ORSE","Locação de caixa coletora de entulho capacidade 5 m³ (Local: Aracaju), prazo máximo de 7 dias","un",2,259.83,337.23,674.46,5.3861856628084539E-3]
[" 3 ",null,null,"ALVENARIAS",{"$nulls":4},14082.17,0.11245912604933032]
[" 3.1 "," 3315 ","ORSE","Reboco ou emboço interno, de teto, com argamassa traço t6 - 1:2:10 (cimento / cal / areia), espessura 1,5 cm","m²",331.07,27.86,36.15,11968.18,9.5576964573007864E-2]
[" 3.2 "," 151 ","ORSE","Alvenaria bloco cerâmico vedação, 9x19x24cm, e=9cm, com argamassa t5 - 1:2:8 (cimento/cal/areia), junta=1cm - Rev.09","m²",42.95,37.93,49.22,2113.9899999999998,1.6882161476322457E-2]
[" 4 ",null,null,"COBERTURA",{"$nulls":4},41463.910000000003,0.33112759476615383]
[" 4.1 "," 272 ","ORSE","Revisão em cobertura com telha ceramica tipo colonial, cor clara, 1ª, Itabaianinha ou similar, com reposição de 20% do material - Rev 02","m2",122.23,61.62,79.97,9774.73,7.8060241650837234E-2]
[" 4.2 "," 9078 ","ORSE","Calha em chapa de aluminio, desenvolvimento 80 cm","m",17.87,115.84,150.34,2686.57,2.1454741298418453E-2]
[" 4.3 "," 94201 ","SINAPI","TELHAMENTO COM TELHA CERÂMICA CAPA-CANAL, TIPO COLONIAL, COM ATÉ 2 ÁGUAS, INCLUSO TRANSPORTE VERTICAL. AF_07/2019","m²",129.57,35.53,46.11,5974.47,4.7711657706727195E-2]
[" 4.4 "," 92541 ","SINAPI","TRAMA DE MADEIRA COMPOSTA POR RIPAS, CAIBROS E TERÇAS PARA TELHADOS DE ATÉ 2 ÁGUAS PARA TELHA CERÂMICA CAPA-CANAL, INCLUSO TRANSPORTE VERTICAL. AF_07/2019","m²",129.57,68.2,88.51,11468.24,9.1584482201533715E-2]
[" 4.5 "," 92549 ","SINAPI","FABRICAÇÃO E INSTALAÇÃO DE TESOURA INTEIRA EM MADEIRA NÃO APARELHADA, VÃO DE 7 M, PARA TELHA CERÂMICA OU DE CONCRETO, INCLUSO IÇAMENTO. AF_07/2019","UN",6,1484.44,1926.65,11559.9,9.2316471908637204E-2]
[" 5 ",null,null,"ESQUADRIAS",{"$nulls":4},4475.6099999999997,3.5741877078436297E-2]
[" 5.1 "," 3547 ","ORSE","Porta em madeira compensada (canela), lisa, semi-ôca, 0.80 x 2.10 m, inclusive batente e ferragens","un",3,654.47,849.43,2548.29,2.0350447858550776E-2]
[" 5.2 "," 12104 ","ORSE","Porta de ferro de abrir, c/ gradil em barra chata 3/4\" x 1/8\", inclusive requadro, ferrolho e dobradiças e fechadura, conforme desenho","m2",3,423.22,549.29,1647.87,1.3159763022524935E-2]
[" 5.3 "," 94570 ","SINAPI","JANELA DE ALUMÍNIO DE CORRER COM 2 FOLHAS PARA VIDROS, COM VIDROS, BATENTE, ACABAMENTO COM ACETATO OU BRILHANTE E FERRAGENS. EXCLUSIVE ALIZAR E CONTRAMARCO. FORNECIMENTO E INSTALAÇÃO. AF_12/2019","m²",0.98,219.71,285.16000000000003,279.45,2.2316661973605886E-3]
[" 6 ",null,null,"INSTALAÇÕES HIDRÁULICAS",{"$nulls":4},847.43,6.7675107734094953E-3]
[" 6.1 "," 1679 ","ORSE","Ponto de esgoto com tubo de pvc rígido soldável de  Ø 40 mm (lavatórios, mictórios, ralos sifonados, etc...)","un",1,74.19,96.29,96.29,7.689645308421939E-4]
[" 6.2 "," 89448 ","SINAPI","TUBO, PVC, SOLDÁVEL, DN 40MM, INSTALADO EM PRUMADA DE ÁGUA - FORNECIMENTO E INSTALAÇÃO. AF_12/2014","M",7.5,17.190000000000001,22.31,167.32,1.3362046453475529E-3]
[" 6.3 "," 86942 ","SINAPI","LAVATÓRIO LOUÇA BRANCA SUSPENSO, 29,5 X 39CM OU EQUIVALENTE, PADRÃO POPULAR, INCLUSO SIFÃO TIPO GARRAFA EM PVC, VÁLVULA E ENGATE FLEXÍVEL 30CM EM PLÁSTICO E TORNEIRA CROMADA DE MESA, PADRÃO POPULAR - FORNECIMENTO E INSTALAÇÃO. AF_01/2020","UN",2,224.91,291.91000000000003,583.82000000000005,4.6623415972197489E-3]
[" 7 ",null,null,"REVESTIMENTOS",{"$nulls":4},32230.26,0.25738837636122053]
[" 7.1 "," 87692 ","SINAPI","CONTRAPISO EM ARGAMASSA TRAÇO 1:4 (CIMENTO E AREIA), PREPARO MANUAL, APLICADO EM ÁREAS SECAS SOBRE LAJE, NÃO ADERIDO, ACABAMENTO NÃO REFORÇADO, ESPESSURA 5CM. AF_07/2021","m²",130.83000000000001,47.06,61.07,7989.78,6.3805768296109081E-2]
[" 7.2 "," 11370 ","ORSE","Revestimento cerâmico para piso ou parede, 45 x 45 cm, c/ piso porcelanato, elemento taupe, ELIANE ou similar, PEI 4, aplicado com argamassa industrializada ac-ii, rejuntado, exclusive regularização de base ou emboço","m2",66.62,62.18,80.7,5376.23,4.2934159099072881E-2]
[" 7.3 "," 10175 ","ORSE","Piso alta resistencia, branco, e=12mm, aplicado com juntas, polido até o esmeril 400 e encerado, exclusive argamassa de regualrização","m2",154.79,93.9,121.87,18864.25,0.15064844896603857]
[" 8 ",null,null,"INSTALAÇÕES ELÉTRICAS",{"$nulls":4},5762.7,4.6020478781642025E-2]
[" 8.1 "," 93141 ","SINAPI","PONTO DE TOMADA RESIDENCIAL INCLUINDO TOMADA 10A/250V, CAIXA ELÉTRICA, ELETRODUTO, CABO, RASGO, QUEBRA E CHUMBAMENTO. AF_01/2016","UN",10,149.83000000000001,194.46,1944.6,1.5529425970253714E-2]
[" 8.2 "," 93128 ","SINAPI","PONTO DE ILUMINAÇÃO RESIDENCIAL INCLUINDO INTERRUPTOR SIMPLES, CAIXA ELÉTRICA, ELETRODUTO, CABO, RASGO, QUEBRA E CHUMBAMENTO (EXCLUINDO LUMINÁRIA E LÂMPADA). AF_01/2016","UN",12,119.74,155.41,1864.92,1.4893107621333723E-2]
[" 8.3 "," 101879 ","SINAPI","QUADRO DE DISTRIBUIÇÃO DE ENERGIA EM CHAPA DE AÇO GALVANIZADO, DE EMBUTIR, COM BARRAMENTO TRIFÁSICO, PARA 24 DISJUNTORES DIN 100A - FORNECIMENTO E INSTALAÇÃO. AF_10/2020","UN",2,752.44,976.59,1953.18,1.5597945190054587E-2]
[" 9 ",null,null,"PINTURAS",{"$nulls":4},11539.78,9.2155795136796462E-2]
[" 9.1 "," 2287 ","ORSE","Pintura de acabamento com aplicação de 02 demãos de tinta PVA latex para exteriores - cores convencionais","m2",175.37,12.3,15.96,2798.9,2.2351800035042231E-2]
[" 9.2 "," 2285 ","ORSE","Pintura de acabamento com aplicação de 02 demãos de tinta PVA latex para interiores - cores convencionais - Rev 03","m²",450.49,12.3,15.96,7189.82,5.7417349290059427E-2]
[" 9.3 "," 2308 ","ORSE","Pintura de acabamento com lixamento e aplicação de 02 demãos de esmalte sintético sobre madeira - R1","m2",73.06,16.36,21.23,1551.06,1.2386645811694809E-2]
[]
[{"$nulls":5},"Total sem BDI",null,96488.58]
[{"$nulls":5},"Total do BDI",null,28731.759999999998]
[{"$nulls":5},"Total Geral",null,125220.34]

{"sheet":"CPUs","index":2,"n_rows":312,"n_cols":10,"rows_kept":312,"cut":false,"hidden":false,"merged":[[1,8,1,9],[2,0,2,9],[9,4,9,5],[11,7,11,8],[13,4,13,5],[0,2,0,3],[0,4,0,5],[0,6,0,7],[0,8,0,9],[1,2,1,3],[1,4,1,5],[1,6,1,7],[3,0,3,9],[4,4,4,5],[5,4,5,5],[6,4,6,5],[7,4,7,5],[8,4,8,5],[14,4,14,5],[15,4,15,5],[16,4,16,5],[18,7,18,8],[20,4,20,5],[21,4,21,5],[22,4,22,5],[23,4,23,5],[24,4,24,5],[25,4,25,5],[26,4,26,5],[27,4,27,5],[28,4,28,5],[30,7,30,8],[32,4,32,5],[33,4,33,5],[34,4,34,5],[35,4,35,5],[57,4,57,5],[59,7,59,8],[61,4,61,5],[36,4,36,5],[37,4,37,5],[39,7,39,8],[41,4,41,5],[42,4,42,5],[43,4,43,5],[44,4,44,5],[49,4,49,5],[50,4,50,5],[52,7,52,8],[54,4,54,5],[55,4,55,5],[56,4,56,5],[46,7,46,8],[48,4,48,5],[62,4,62,5],[63,4,63,5],[65,7,65,8],[67,4,67,5],[68,4,68,5],[69,4,69,5],[70,4,70,5],[71,4,71,5],[72,4,72,5],[73,4,73,5],[75,7,75,8],[77,4,77,5],[78,4,78,5],[79,4,79,5],[80,4,80,5],[81,4,81,5],[82,4,82,5],[83,4,83,5],[103,4,103,5],[104,4,104,5],[105,4,105,5],[84,4,84,5],[86,7,86,8],[88,4,88,5],[89,4,89,5],[90,4,90,5],[91,4,91,5],[92,4,92,5],[95,4,95,5],[96,4,96,5],[97,4,97,5],[99,7,99,8],[101,4,101,5],[102,4,102,5],[93,4,93,5],[94,4,94,5],[106,4,106,5],[107,4,107,5],[109,7,109,8],[111,4,111,5],[112,4,112,5],[113,4,113,5],[114,4,114,5],[115,4,115,5],[116,4,116,5],[117,4,117,5],[119,7,119,8],[121,4,121,5],[122,4,122,5],[123,4,123,5],[124,4,124,5],[125,4,125,5],[126,4,126,5],[127,4,127,5],[145,4,145,5],[146,4,146,5],[148,7,148,8],[128,4,128,5],[129,4,129,5],[130,4,130,5],[131,4,131,5],[132,4,132,5],[134,7,134,8],[136,4,136,5],[139,4,139,5],[140,4,140,5],[141,4,141,5],[142,4,142,5],[143,4,143,5],[144,4,144,5],[137,4,137,5],[138,4,138,5],[150,4,150,5],[151,4,151,5],[152,4,152,5],[153,4,153,5],[154,4,154,5],[155,4,155,5],[156,4,156,5],[157,4,157,5],[158,4,158,5],[159,4,159,5],[160,4,160,5],[161,4,161,5],[163,7,163,8],[165,4,165,5],[166,4,166,5],[167,4,167,5],[168,4,168,5],[169,4,169,5],[170,4,170,5],[171,4,171,5],[173,7,173,8],[175,4,175,5],[176,4,176,5],[177,4,177,5],[178,4,178,5],[179,4,179,5],[180,4,180,5],[181,4,181,5],[183,7,183,8],[185,4,185,5],[186,4,186,5],[187,4,187,5],[188,4,188,5],[189,4,189,5],[190,4,190,5],[191,4,191,5],[192,4,192,5],[193,4,193,5],[194,4,194,5],[195,4,195,5],[196,4,196,5],[197,4,197,5],[199,7,199,8],[201,4,201,5],[202,4,202,5],[243,4,243,5],[245,7,245,8],[247,4,247,5],[203,4,203,5],[204,4,204,5],[205,4,205,5],[206,4,206,5],[214,4,214,5],[215,4,215,5],[216,4,216,5],[208,7,208,8],[210,4,210,5],[211,4,211,5],[212,4,212,5],[213,4,213,5],[218,7,218,8],[220,4,220,5],[221,4,221,5],[222,4,222,5],[223,4,223,5],[224,4,224,5],[249,4,249,5],[250,4,250,5],[251,4,251,5],[248,4,248,5],[226,7,226,8],[228,4,228,5],[229,4,229,5],[230,4,230,5],[231,4,231,5],[232,4,232,5],[233,4,233,5],[234,4,234,5],[235,4,235,5],[236,4,236,5],[238,7,238,8],[240,4,240,5],[241,4,241,5],[242,4,242,5],[252,4,252,5],[253,4,253,5],[254,4,254,5],[255,4,255,5],[256,4,256,5],[257,4,257,5],[259,7,259,8],[261,4,261,5],[262,4,262,5],[263,4,263,5],[264,4,264,5],[265,4,265,5],[273,7,273,8],[275,4,275,5],[276,4,276,5],[266,4,266,5],[267,4,267,5],[268,4,268,5],[277,4,277,5],[278,4,278,5],[279,4,279,5],[288,4,288,5],[289,4,289,5],[290,4,290,5],[269,4,269,5],[270,4,270,5],[271,4,271,5],[280,4,280,5],[282,7,282,8],[284,4,284,5],[285,4,285,5],[286,4,286,5],[287,4,287,5],[313,7,313,8],[292,7,292,8],[294,4,294,5],[295,4,295,5],[296,4,296,5],[297,4,297,5],[298,4,298,5],[299,4,299,5],[300,4,300,5],[302,7,302,8],[304,4,304,5],[305,4,305,5],[306,4,306,5],[307,4,307,5],[308,4,308,5],[309,4,309,5],[310,4,310,5],[311,4,311,5]]}
[null,null,"Composições Analíticas com Preço Unitário",null,"Bancos",null,"B.D.I.",null,"Encargos Sociais"]
[null,null,"Reforma do prédio-sede da Associação dos Produtores de Polpa de Frutas do Povoado Nova Descoberta, Boquim-SE",null,"SINAPI - 06/2022 - Sergipe\nORSE - 06/2022 - Sergipe\n",null,"29,79%",null,"Desonerado: \nHorista: 82,52%\nMensalista: 46,54%"]
["Composições Analíticas com Preço Unitário"]
["Composições Principais"]
[" 1.1 ","Código","Banco","Descrição","Tipo",null,"Und","Quant.","Valor Unit","Total"]
["Composição"," CODEVASF  245 ","Próprio","Mobilização/Desmobilização de Pessoal e Equipamentos (CDVSF) 1","CANT - CANTEIRO DE OBRAS",null,"und",1,1031.6400000000001,1031.6400000000001]
["Insumo"," 2480 ","ORSE","Pick-up, capacidade 1,2 t","Equipamento",null,"h",4,10.89,43.56]
["Insumo"," 2452 ","ORSE","Caminhao toco, PBT = 9700kg, com carroceria de madeira 2,50x7,00x0,50m, potência 160 cv","Equipamento",null,"h",4,47.96,191.84]
["Insumo"," 00004222 ","SINAPI","GASOLINA COMUM","Material",null,"L",40.33,7.28,293.60000000000002]
["Insumo"," 00004221 ","SINAPI","OLEO DIESEL COMBUSTIVEL COMUM","Material",null,"L",69.14,7.27,502.64]
[]
[]
[]
[" 1.2 ","Código","Banco","Descrição","Tipo",null,"Und","Quant.","Valor Unit","Total"]
["Composição"," CODEVASF  266 ","Próprio","Administração Local","ASTU - ASSENTAMENTO DE TUBOS E PECAS",null,"und",1,6100.38,6100.38]
["Composição Auxiliar"," 93572 ","SINAPI","ENCARREGADO GERAL DE OBRAS COM ENCARGOS COMPLEMENTARES","SEDI - SERVIÇOS DIVERSOS",null,"MES",1,4618.54,4618.54]
["Composição Auxiliar"," 93565 ","SINAPI","ENGENHEIRO CIVIL DE OBRA JUNIOR COM ENCARGOS COMPLEMENTARES","SEDI - SERVIÇOS DIVERSOS",null,"MES",0.1,14818.45,1481.84]
[]
[]
[]
[" 1.3 ","Código","Banco","Descrição","Tipo",null,"Und","Quant.","Valor Unit","Total"]
["Composição"," 74209/001 ","SINAPI","PLACA DE OBRA EM CHAPA DE ACO GALVANIZADO","CANT - CANTEIRO DE OBRAS",null,"m²",1,381.03,381.03]
["Composição Auxiliar"," 94962 ","SINAPI","CONCRETO MAGRO PARA LASTRO, TRAÇO 1:4,5:4,5 (EM MASSA SECA DE CIMENTO/ AREIA MÉDIA/ BRITA 1) - PREPARO MECÂNICO COM BETONEIRA 400 L. AF_05/2021","FUES - FUNDAÇÕES E ESTRUTURAS",null,"m³",0.01,353.83,3.53]
["Composição Auxiliar"," 88262 ","SINAPI","CARPINTEIRO DE FORMAS COM ENCARGOS COMPLEMENTARES","SEDI - SERVIÇOS DIVERSOS",null,"H",1,19.13,19.13]
["Composição Auxiliar"," 88316 ","SINAPI","SERVENTE COM ENCARGOS COMPLEMENTARES","SEDI - SERVIÇOS DIVERSOS",null,"H",2,15.78,31.56]
["Insumo"," 00004813 ","SINAPI","PLACA DE OBRA (PARA CONSTRUCAO CIVIL) EM CHAPA GALVANIZADA *N. 22*, ADESIVADA, DE *2,4 X 1,2* M (SEM POSTES PARA FIXACAO)","Material",null,"m²",1,275,275]
["Insumo"," 00004491 ","SINAPI","PONTALETE *7,5 X 7,5* CM EM PINUS, MISTA OU EQUIVALENTE DA REGIAO - BRUTA","Material",null,"M",4,10.85,43.4]
["Insumo"," 00005075 ","SINAPI","PREGO DE ACO POLIDO COM CABECA 18 X 30 (2 3/4 X 10)","Material",null,"KG",0.11,20.86,2.29]
["Insumo"," 00004417 ","SINAPI","SARRAFO NAO APARELHADO *2,5 X 7* CM, EM MACARANDUBA, ANGELIM OU EQUIVALENTE DA REGIAO -  BRUTA","Material",null,"M",1,6.12,6.12]
[]
[]
[]
[" 2.1 ","Código","Banco","Descrição","Tipo",null,"Und","Quant.","Valor Unit","Total"]
["Composição"," 18 ","ORSE","Demolição de piso cerâmico ou ladrilho","Demolições / Remoções",null,"m2",1,10.78,10.78]
["Composição Auxiliar"," 10549 ","ORSE","Encargos Complementares - Servente","Provisórios",null,"h",0.7,3.68,2.57]
["Composição Auxiliar"," 10550 ","ORSE","Encargos Complementares - Pedreiro","Provisórios",null,"h",7.0000000000000007E-2,3.55,0.24]
["Insumo"," 00004750 ","SINAPI","PEDREIRO (HORISTA)","Mão de Obra",null,"H",7.0000000000000007E-2,13.45,0.94]
["Insumo"," 00006111 ","SINAPI","SERVENTE DE OBRAS","Mão de Obra",null,"H",0.7,10.050000000000001,7.03]
[]
[]
[]
[" 2.2 ","Código","Banco","Descrição","Tipo",null,"Und","Quant.","Valor Unit","Total"]
["Composição"," 97631 ","SINAPI","DEMOLIÇÃO DE ARGAMASSAS, DE FORMA MANUAL, SEM REAPROVEITAMENTO. AF_12/2017","SERP - SERVIÇOS PRELIMINARES",null,"m²",1,2.38,2.38]
["Composição Auxiliar"," 88309 ","SINAPI","PEDREIRO COM ENCARGOS COMPLEMENTARES","SEDI - SERVIÇOS DIVERSOS",null,"H",3.7400000000000003E-2,19.36,0.72]
["Composição Auxiliar"," 88316 ","SINAPI","SERVENTE COM ENCARGOS COMPLEMENTARES","SEDI - SERVIÇOS DIVERSOS",null,"H",0.1053,15.78,1.66]
[]
[]
[]
[" 2.3 ","Código","Banco","Descrição","Tipo",null,"Und","Quant.","Valor Unit","Total"]
["Composição"," 73859/002 ","SINAPI","CAPINA E LIMPEZA MANUAL DE TERRENO","SERP - SERVIÇOS PRELIMINARES",null,"m²",1,1.26,1.26]
["Composição Auxiliar"," 88316 ","SINAPI","SERVENTE COM ENCARGOS COMPLEMENTARES","SEDI - SERVIÇOS DIVERSOS",null,"H",0.08,15.78,1.26]
[]
[]
[]
[" 2.4 ","Código","Banco","Descrição","Tipo",null,"Und","Quant.","Valor Unit","Total"]
["Composição"," 26 ","ORSE","Coleta e carga manuais de entulho","Demolições / Remoções",null,"m³",1,13.73,13.73]
["Composição Auxiliar"," 10549 ","ORSE","Encargos Complementares - Servente","Provisórios",null,"h",1,3.68,3.68]
["Insumo"," 00006111 ","SINAPI","SERVENTE DE OBRAS","Mão de Obra",null,"H",1,10.050000000000001,10.050000000000001]
[]
[]
[]
[" 2.5 ","Código","Banco","Descrição","Tipo",null,"Und","Quant.","Valor Unit","Total"]
["Composição"," 13197 ","ORSE","Locação de caixa coletora de entulho capacidade 5 m³ (Local: Aracaju), prazo máximo de 7 dias","Diversos",null,"un",1,259.83,259.83]
["Insumo"," 7962 ","ORSE","Locação de caixa coletora de entulho capacidade 5 m³ (Local: Aracaju)","Serviços",null,"un",1,259.83,259.83]
[]
[]
[]
[" 3.1 ","Código","Banco","Descrição","Tipo",null,"Und","Quant.","Valor Unit","Total"]
["Composição"," 3315 ","ORSE","Reboco ou emboço interno, de teto, com argamassa traço t6 - 1:2:10 (cimento / cal / areia), espessura 1,5 cm","Conversão InfoWOrca",null,"m²",1,27.86,27.86]
["Composição Auxiliar"," 3309 ","ORSE","Argamassa cimento, cal e areia traço t-6 (1:2:10) - 1 saco cimento de 50 kg / 2 sacos de cal de 20 kg / 10 padiolas de areia grossa dim 0.35 x 0.45 x 0.13 m - Confecção mecânica e transporte","Conversão InfoWOrca",null,"m³",1.4999999999999999E-2,425.02,6.37]
["Composição Auxiliar"," 10549 ","ORSE","Encargos Complementares - Servente","Provisórios",null,"h",0.7,3.68,2.57]
["Composição Auxiliar"," 10550 ","ORSE","Encargos Complementares - Pedreiro","Provisórios",null,"h",0.7,3.55,2.48]
["Insumo"," 00004750 ","SINAPI","PEDREIRO (HORISTA)","Mão de Obra",null,"H",0.7,13.45,9.41]
["Insumo"," 00006111 ","SINAPI","SERVENTE DE OBRAS","Mão de Obra",null,"H",0.7,10.050000000000001,7.03]
[]
[]
[]
[" 3.2 ","Código","Banco","Descrição","Tipo",null,"Und","Quant.","Valor Unit","Total"]
["Composição"," 151 ","ORSE","Alvenaria bloco cerâmico vedação, 9x19x24cm, e=9cm, com argamassa t5 - 1:2:8 (cimento/cal/areia), junta=1cm - Rev.09","Alvenarias de Vedação",null,"m²",1,37.93,37.93]
["Composição Auxiliar"," 3308 ","ORSE","Argamassa em volume - cimento, cal e areia traço t-5 (1:2:8) - 1 saco cimento 50 kg / 2 sacos cal 20 kg / 8 padiolas de areia dim 0.35 x 0.45 x 0.13 m - Confecção mecânica e transporte","Conversão InfoWOrca",null,"m³",1.38E-2,483.16,6.66]
["Composição Auxiliar"," 10549 ","ORSE","Encargos Complementares - Servente","Provisórios",null,"h",0.38,3.68,1.39]
["Composição Auxiliar"," 10550 ","ORSE","Encargos Complementares - Pedreiro","Provisórios",null,"h",0.64,3.55,2.27]
["Insumo"," 2657 ","ORSE","Bloco cerâmico, de vedação, 6 furos horizontais, dim. 9 x 19 x 24 cm","Material",null,"un",20,0.76,15.2]
["Insumo"," 00004750 ","SINAPI","PEDREIRO (HORISTA)","Mão de Obra",null,"H",0.64,13.45,8.6]
["Insumo"," 00006111 ","SINAPI","SERVENTE DE OBRAS","Mão de Obra",null,"H",0.38,10.050000000000001,3.81]
[]
[]
[]
[" 4.1 ","Código","Banco","Descrição","Tipo",null,"Und","Quant.","Valor Unit","Total"]
["Composição"," 272 ","ORSE","Revisão em cobertura com telha ceramica tipo colonial, cor clara, 1ª, Itabaianinha ou similar, com reposição de 20% do material - Rev 02","Telhamento",null,"m2",1,61.62,61.62]
["Composição Auxiliar"," 9 ","ORSE","Remoção de telhamento com telhas cerâmicas","Demolições / Remoções",null,"m2",1,9.24,9.24]
["Composição Auxiliar"," 30 ","ORSE","Demolição de madeiramento em coberturas com telhas cerâmicas","Demolições / Remoções",null,"m2",0.2,20.04,4]
["Composição Auxiliar"," 196 ","ORSE","Madeiramento em massaranduba/madeira de lei, acabamento serrado c/ ripão 5 x 3cm e  ripa 4 x 1,5cm, exclusive peças principais","Madeiramento",null,"m²",0.2,100.14,20.02]
["Composição Auxiliar"," 10549 ","ORSE","Encargos Complementares - Servente","Provisórios",null,"h",1,3.68,3.68]
["Composição Auxiliar"," 10551 ","ORSE","Encargos Complementares - Carpinteiro","Provisórios",null,"h",0.5,3.59,1.79]
["Insumo"," 2187 ","ORSE","Telha cerâmica tipo colonial, simples, não resinada, cor clara, 1ª qualid, comp=51cm, 26 un/m² (Itabaianinha ou similar)","Material",null,"un",6.8,0.9,6.12]
["Insumo"," 00001213 ","SINAPI","CARPINTEIRO DE FORMAS (HORISTA)","Mão de Obra",null,"H",0.5,13.45,6.72]
["Insumo"," 00006111 ","SINAPI","SERVENTE DE OBRAS","Mão de Obra",null,"H",1,10.050000000000001,10.050000000000001]
[]
[]
[]
[" 4.2 ","Código","Banco","Descrição","Tipo",null,"Und","Quant.","Valor Unit","Total"]
["Composição"," 9078 ","ORSE","Calha em chapa de aluminio, desenvolvimento 80 cm","Complementos",null,"m",1,115.84,115.84]
["Composição Auxiliar"," 10549 ","ORSE","Encargos Complementares - Servente","Provisórios",null,"h",1.25,3.68,4.5999999999999996]
["Composição Auxiliar"," 10551 ","ORSE","Encargos Complementares - Carpinteiro","Provisórios",null,"h",1.25,3.59,4.4800000000000004]
["Insumo"," 9364 ","ORSE","Calha em chapa de aluminio, desenvolvimento 80cm","Material",null,"m",1,77.39,77.39]
["Insumo"," 00001213 ","SINAPI","CARPINTEIRO DE FORMAS (HORISTA)","Mão de Obra",null,"H",1.25,13.45,16.809999999999999]
["Insumo"," 00006111 ","SINAPI","SERVENTE DE OBRAS","Mão de Obra",null,"H",1.25,10.050000000000001,12.56]
[]
[]
[]
[" 4.3 ","Código","Banco","Descrição","Tipo",null,"Und","Quant.","Valor Unit","Total"]
["Composição"," 94201 ","SINAPI","TELHAMENTO COM TELHA CERÂMICA CAPA-CANAL, TIPO COLONIAL, COM ATÉ 2 ÁGUAS, INCLUSO TRANSPORTE VERTICAL. AF_07/2019","COBE - COBERTURA",null,"m²",1,35.53,35.53]
["Composição Auxiliar"," 93282 ","SINAPI","GUINCHO ELÉTRICO DE COLUNA, CAPACIDADE 400 KG, COM MOTO FREIO, MOTOR TRIFÁSICO DE 1,25 CV - CHI DIURNO. AF_03/2016","CHOR - CUSTOS HORÁRIOS DE MÁQUINAS E EQUIPAMENTOS",null,"CHI",5.16E-2,18.86,0.97]
["Composição Auxiliar"," 93281 ","SINAPI","GUINCHO ELÉTRICO DE COLUNA, CAPACIDADE 400 KG, COM MOTO FREIO, MOTOR TRIFÁSICO DE 1,25 CV - CHP DIURNO. AF_03/2016","CHOR - CUSTOS HORÁRIOS DE MÁQUINAS E EQUIPAMENTOS",null,"CHP",3.7199999999999997E-2,19.88,0.73]
["Composição Auxiliar"," 88316 ","SINAPI","SERVENTE COM ENCARGOS COMPLEMENTARES","SEDI - SERVIÇOS DIVERSOS",null,"H",0.39900000000000002,15.78,6.29]
["Composição Auxiliar"," 88323 ","SINAPI","TELHADISTA COM ENCARGOS COMPLEMENTARES","SEDI - SERVIÇOS DIVERSOS",null,"H",0.13300000000000001,18.96,2.52]
["Insumo"," 00007173 ","SINAPI","TELHA DE BARRO / CERAMICA, NAO ESMALTADA, TIPO COLONIAL, CANAL, PLAN, PAULISTA, COMPRIMENTO DE *44 A 50* CM, RENDIMENTO DE COBERTURA DE *26* TELHAS/M2","Material",null,"MIL",2.75E-2,910,25.02]
[]
[]
[]
[" 4.4 ","Código","Banco","Descrição","Tipo",null,"Und","Quant.","Valor Unit","Total"]
["Composição"," 92541 ","SINAPI","TRAMA DE MADEIRA COMPOSTA POR RIPAS, CAIBROS E TERÇAS PARA TELHADOS DE ATÉ 2 ÁGUAS PARA TELHA CERÂMICA CAPA-CANAL, INCLUSO TRANSPORTE VERTICAL. AF_07/2019","COBE - COBERTURA",null,"m²",1,68.2,68.2]
["Composição Auxiliar"," 93282 ","SINAPI","GUINCHO ELÉTRICO DE COLUNA, CAPACIDADE 400 KG, COM MOTO FREIO, MOTOR TRIFÁSICO DE 1,25 CV - CHI DIURNO. AF_03/2016","CHOR - CUSTOS HORÁRIOS DE MÁQUINAS E EQUIPAMENTOS",null,"CHI",5.7099999999999998E-2,18.86,1.07]
["Composição Auxiliar"," 93281 ","SINAPI","GUINCHO ELÉTRICO DE COLUNA, CAPACIDADE 400 KG, COM MOTO FREIO, MOTOR TRIFÁSICO DE 1,25 CV - CHP DIURNO. AF_03/2016","CHOR - CUSTOS HORÁRIOS DE MÁQUINAS E EQUIPAMENTOS",null,"CHP",4.1200000000000001E-2,19.88,0.81]
["Composição Auxiliar"," 88239 ","SINAPI","AJUDANTE DE CARPINTEIRO COM ENCARGOS COMPLEMENTARES","SEDI - SERVIÇOS DIVERSOS",null,"H",0.40200000000000002,15.25,6.13]
["Composição Auxiliar"," 88262 ","SINAPI","CARPINTEIRO DE FORMAS COM ENCARGOS COMPLEMENTARES","SEDI - SERVIÇOS DIVERSOS",null,"H",0.4,19.13,7.65]
["Insumo"," 00004430 ","SINAPI","CAIBRO NAO APARELHADO *5 X 6* CM, EM MACARANDUBA, ANGELIM OU EQUIVALENTE DA REGIAO -  BRUTA","Material",null,"M",2.3359999999999999,11.25,26.28]
["Insumo"," 00020247 ","SINAPI","PREGO DE ACO POLIDO COM CABECA 15 X 15 (1 1/4 X 13)","Material",null,"KG",7.0000000000000007E-2,23.1,1.61]
["Insumo"," 00040568 ","SINAPI","PREGO DE ACO POLIDO COM CABECA 22 X 48 (4 1/4 X 5)","Material",null,"KG",0.03,21.02,0.63]
["Insumo"," 00039027 ","SINAPI","PREGO DE ACO POLIDO COM CABECA 19  X 36 (3 1/4  X  9)","Material",null,"KG",0.05,20.84,1.04]
["Insumo"," 00004408 ","SINAPI","RIPA NAO APARELHADA,  *1,5 X 5* CM, EM MACARANDUBA, ANGELIM OU EQUIVALENTE DA REGIAO -  BRUTA","Material",null,"M",2.573,2.14,5.5]
["Insumo"," 00004425 ","SINAPI","VIGA NAO APARELHADA  *6 X 12* CM, EM MACARANDUBA, ANGELIM OU EQUIVALENTE DA REGIAO - BRUTA","Material",null,"M",0.73499999999999999,23.79,17.48]
[]
[]
[]
[" 4.5 ","Código","Banco","Descrição","Tipo",null,"Und","Quant.","Valor Unit","Total"]
["Composição"," 92549 ","SINAPI","FABRICAÇÃO E INSTALAÇÃO DE TESOURA INTEIRA EM MADEIRA NÃO APARELHADA, VÃO DE 7 M, PARA TELHA CERÂMICA OU DE CONCRETO, INCLUSO IÇAMENTO. AF_07/2019","COBE - COBERTURA",null,"UN",1,1484.44,1484.44]
["Composição Auxiliar"," 92260 ","SINAPI","INSTALAÇÃO DE TESOURA (INTEIRA OU MEIA), BIAPOIADA, EM MADEIRA NÃO APARELHADA, PARA VÃOS MAIORES OU IGUAIS A 6,0 M E MENORES QUE 8,0 M, INCLUSO IÇAMENTO. AF_07/2019","COBE - COBERTURA",null,"UN",1,431.72,431.72]
["Composição Auxiliar"," 88262 ","SINAPI","CARPINTEIRO DE FORMAS COM ENCARGOS COMPLEMENTARES","SEDI - SERVIÇOS DIVERSOS",null,"H",18.734999999999999,19.13,358.4]
["Composição Auxiliar"," 88239 ","SINAPI","AJUDANTE DE CARPINTEIRO COM ENCARGOS COMPLEMENTARES","SEDI - SERVIÇOS DIVERSOS",null,"H",4.3230000000000004,15.25,65.92]
["Insumo"," 00004400 ","SINAPI","CAIBRO NAO APARELHADO,  *6 X 8* CM,  EM MACARANDUBA, ANGELIM OU EQUIVALENTE DA REGIAO -  BRUTA","Material",null,"M",6,17.899999999999999,107.4]
["Insumo"," 00021142 ","SINAPI","ESTRIBO COM PARAFUSO EM CHAPA DE FERRO FUNDIDO DE 2\" X 3/16\" X 35 CM, SECAO \"U\", PARA MADEIRAMENTO DE TELHADO","Material",null,"UN",1,37.71,37.71]
["Insumo"," 00039027 ","SINAPI","PREGO DE ACO POLIDO COM CABECA 19  X 36 (3 1/4  X  9)","Material",null,"KG",1.925,20.84,40.11]
["Insumo"," 00004415 ","SINAPI","SARRAFO NAO APARELHADO 2,5 X 5 CM, EM MACARANDUBA, ANGELIM OU EQUIVALENTE DA REGIAO -  BRUTA","Material",null,"M",3.5,4.25,14.87]
["Insumo"," 00006193 ","SINAPI","TABUA  NAO  APARELHADA  *2,5 X 20* CM, EM MACARANDUBA, ANGELIM OU EQUIVALENTE DA REGIAO - BRUTA","Material",null,"M",3,15.89,47.67]
["Insumo"," 00004425 ","SINAPI","VIGA NAO APARELHADA  *6 X 12* CM, EM MACARANDUBA, ANGELIM OU EQUIVALENTE DA REGIAO - BRUTA","Material",null,"M",16,23.79,380.64]
[]
[]
[]
[" 5.1 ","Código","Banco","Descrição","Tipo",null,"Und","Quant.","Valor Unit","Total"]
["Composição"," 3547 ","ORSE","Porta em madeira compensada (canela), lisa, semi-ôca, 0.80 x 2.10 m, inclusive batente e ferragens","Conversão InfoWOrca",null,"un",1,654.47,654.47]
["Composição Auxiliar"," 1903 ","ORSE","Argamassa cimento e areia traço t-1 (1:3) - 1 saco cimento 50kg / 3 padiolas areia dim. 0.35 x 0.45 x 0.23 m - Confecção mecânica e transporte","Argamassas",null,"m³",0.01,501.19,5.01]
["Composição Auxiliar"," 10549 ","ORSE","Encargos Complementares - Servente","Provisórios",null,"h",3.75,3.68,13.8]
["Composição Auxiliar"," 10551 ","ORSE","Encargos Complementares - Carpinteiro","Provisórios",null,"h",3.75,3.59,13.46]
["Insumo"," 848 ","ORSE","Dobradiça ferro galvanizado 3\" x 3\" sem aneis","Material",null,"un",3,3.6,10.8]
["Insumo"," 1807 ","ORSE","Porta em madeira compensada canela, lisa, semi-oca -  80 x (160 a 210) x 3,5cm","Material",null,"un",1,206.46,206.46]
["Insumo"," 5015 ","ORSE","Batente (caixão) em madeira lei L=14cm (90x220cm), completo c/02 jogos alizar","Material",null,"cj",1,260,260]
["Insumo"," 00001213 ","SINAPI","CARPINTEIRO DE FORMAS (HORISTA)","Mão de Obra",null,"H",3.75,13.45,50.43]
["Insumo"," 00003080 ","SINAPI","FECHADURA ESPELHO PARA PORTA EXTERNA, EM ACO INOX (MAQUINA, TESTA E CONTRA-TESTA) E EM ZAMAC (MACANETA, LINGUETA E TRINCOS) COM ACABAMENTO CROMADO, MAQUINA DE 40 MM, INCLUINDO CHAVE TIPO CILINDRO","Material",null,"CJ",1,56.75,56.75]
["Insumo"," 00005075 ","SINAPI","PREGO DE ACO POLIDO COM CABECA 18 X 30 (2 3/4 X 10)","Material",null,"KG",4.0000000000000001E-3,20.86,0.08]
["Insumo"," 00006111 ","SINAPI","SERVENTE DE OBRAS","Mão de Obra",null,"H",3.75,10.050000000000001,37.68]
[]
[]
[]
[" 5.2 ","Código","Banco","Descrição","Tipo",null,"Und","Quant.","Valor Unit","Total"]
["Composição"," 12104 ","ORSE","Porta de ferro de abrir, c/ gradil em barra chata 3/4\" x 1/8\", inclusive requadro, ferrolho e dobradiças e fechadura, conforme desenho",343,null,"m2",1,423.22,423.22]
["Composição Auxiliar"," 88315 ","SINAPI","SERRALHEIRO COM ENCARGOS COMPLEMENTARES","SEDI - SERVIÇOS DIVERSOS",null,"H",1.6,19.25,30.8]
["Composição Auxiliar"," 88316 ","SINAPI","SERVENTE COM ENCARGOS COMPLEMENTARES","SEDI - SERVIÇOS DIVERSOS",null,"H",1.8,15.78,28.4]
["Composição Auxiliar"," 88627 ","SINAPI","ARGAMASSA TRAÇO 1:0,5:4,5 (EM VOLUME DE CIMENTO, CAL E AREIA MÉDIA ÚMIDA) PARA ASSENTAMENTO DE ALVENARIA, PREPARO MANUAL. AF_08/2019","SEDI - SERVIÇOS DIVERSOS",null,"m³",6.0000000000000001E-3,575.69000000000005,3.45]
["Composição Auxiliar"," 90830 ","SINAPI","FECHADURA DE EMBUTIR COM CILINDRO, EXTERNA, COMPLETA, ACABAMENTO PADRÃO MÉDIO, INCLUSO EXECUÇÃO DE FURO - FORNECIMENTO E INSTALAÇÃO. AF_12/2019","ESQV - ESQUADRIAS/FERRAGENS/VIDROS",null,"UN",0.6,138.72999999999999,83.23]
["Insumo"," 12939 ","ORSE","Porta de ferro de abrir, c/ gradil em barra chata 3/4\" x 1/8\", inclusive requadro, ferrolho e dobradiças conforme desenho","Material",null,"m2",1,277.33999999999997,277.33999999999997]
[]
[]
[]
[" 5.3 ","Código","Banco","Descrição","Tipo",null,"Und","Quant.","Valor Unit","Total"]
["Composição"," 94570 ","SINAPI","JANELA DE ALUMÍNIO DE CORRER COM 2 FOLHAS PARA VIDROS, COM VIDROS, BATENTE, ACABAMENTO COM ACETATO OU BRILHANTE E FERRAGENS. EXCLUSIVE ALIZAR E CONTRAMARCO. FORNECIMENTO E INSTALAÇÃO. AF_12/2019","ESQV - ESQUADRIAS/FERRAGENS/VIDROS",null,"m²",1,219.71,219.71]
["Composição Auxiliar"," 88309 ","SINAPI","PEDREIRO COM ENCARGOS COMPLEMENTARES","SEDI - SERVIÇOS DIVERSOS",null,"H",0.51900000000000002,19.36,10.039999999999999]
["Composição Auxiliar"," 88316 ","SINAPI","SERVENTE COM ENCARGOS COMPLEMENTARES","SEDI - SERVIÇOS DIVERSOS",null,"H",0.25900000000000001,15.78,4.08]
["Insumo"," 00036896 ","SINAPI","JANELA DE CORRER, EM ALUMINIO PERFIL 25, 100 X 120 CM (A X L), 2 FLS MOVEIS,  SEM BANDEIRA, ACABAMENTO BRANCO OU BRILHANTE, BATENTE DE 6 A 7 CM, COM VIDRO, SEM GUARNICAO","Material",null,"UN",0.83330000000000004,225.9,188.24]
["Insumo"," 00004377 ","SINAPI","PARAFUSO DE ACO ZINCADO COM ROSCA SOBERBA, CABECA CHATA E FENDA SIMPLES, DIAMETRO 4,2 MM, COMPRIMENTO * 32 * MM","Material",null,"UN",9.1999999999999993,0.18,1.65]
["Insumo"," 00039961 ","SINAPI","SILICONE ACETICO USO GERAL INCOLOR 280 G","Material",null,"UN",0.62329999999999997,25.19,15.7]
[]
[]
[]
[" 6.1 ","Código","Banco","Descrição","Tipo",null,"Und","Quant.","Valor Unit","Total"]
["Composição"," 1679 ","ORSE","Ponto de esgoto com tubo de pvc rígido soldável de  Ø 40 mm (lavatórios, mictórios, ralos sifonados, etc...)","Tubos e Conexões de PVC Rígido Soldável para Esgoto",null,"un",1,74.19,74.19]
["Composição Auxiliar"," 10549 ","ORSE","Encargos Complementares - Servente","Provisórios",null,"h",0.65,3.68,2.39]
["Composição Auxiliar"," 10554 ","ORSE","Encargos Complementares - Encanador","Provisórios",null,"h",0.65,3.6,2.34]
["Insumo"," 138 ","ORSE","Adesivo pvc em frasco de 850 gramas","Material",null,"kg",3.9E-2,81.38,3.17]
["Insumo"," 1703 ","ORSE","Pasta lubrificante p/  pvc je","Material",null,"kg",0.09,71.38,6.42]
["Insumo"," 2036 ","ORSE","Solucao limpadora pvc","Material",null,"l",0.06,78.37,4.7]
["Insumo"," 00002696 ","SINAPI","ENCANADOR OU BOMBEIRO HIDRAULICO (HORISTA)","Mão de Obra",null,"H",0.65,13.45,8.74]
["Insumo"," 00003516 ","SINAPI","JOELHO PVC, SOLDAVEL, BB, 45 GRAUS, DN 40 MM, PARA ESGOTO PREDIAL","Material",null,"UN",3,1.18,3.54]
["Insumo"," 00003517 ","SINAPI","JOELHO PVC, SOLDAVEL, BB, 90 GRAUS, DN 40 MM, PARA ESGOTO PREDIAL","Material",null,"UN",3,4.13,12.39]
["Insumo"," 00003767 ","SINAPI","LIXA EM FOLHA PARA PAREDE OU MADEIRA, NUMERO 120, COR VERMELHA","Material",null,"UN",0.2,0.85,0.17]
["Insumo"," 00006111 ","SINAPI","SERVENTE DE OBRAS","Mão de Obra",null,"H",0.65,10.050000000000001,6.53]
["Insumo"," 00009835 ","SINAPI","TUBO PVC  SERIE NORMAL, DN 40 MM, PARA ESGOTO  PREDIAL (NBR 5688)","Material",null,"M",4,5.95,23.8]
[]
[]
[]
[" 6.2 ","Código","Banco","Descrição","Tipo",null,"Und","Quant.","Valor Unit","Total"]
["Composição"," 89448 ","SINAPI","TUBO, PVC, SOLDÁVEL, DN 40MM, INSTALADO EM PRUMADA DE ÁGUA - FORNECIMENTO E INSTALAÇÃO. AF_12/2014","INHI - INSTALAÇÕES HIDROS SANITÁRIAS",null,"M",1,17.190000000000001,17.190000000000001]
["Composição Auxiliar"," 88248 ","SINAPI","AUXILIAR DE ENCANADOR OU BOMBEIRO HIDRÁULICO COM ENCARGOS COMPLEMENTARES","SEDI - SERVIÇOS DIVERSOS",null,"H",2.8199999999999999E-2,14.82,0.41]
["Composição Auxiliar"," 88267 ","SINAPI","ENCANADOR OU BOMBEIRO HIDRÁULICO COM ENCARGOS COMPLEMENTARES","SEDI - SERVIÇOS DIVERSOS",null,"H",2.8199999999999999E-2,18.75,0.52]
["Insumo"," 00038383 ","SINAPI","LIXA D'AGUA EM FOLHA, GRAO 100","Material",null,"UN",6.6E-3,1.86,0.01]
["Insumo"," 00009874 ","SINAPI","TUBO PVC, SOLDAVEL, DN 40 MM, AGUA FRIA (NBR-5648)","Material",null,"M",1.0492999999999999,15.49,16.25]
[]
[]
[]
[" 6.3 ","Código","Banco","Descrição","Tipo",null,"Und","Quant.","Valor Unit","Total"]
["Composição"," 86942 ","SINAPI","LAVATÓRIO LOUÇA BRANCA SUSPENSO, 29,5 X 39CM OU EQUIVALENTE, PADRÃO POPULAR, INCLUSO SIFÃO TIPO GARRAFA EM PVC, VÁLVULA E ENGATE FLEXÍVEL 30CM EM PLÁSTICO E TORNEIRA CROMADA DE MESA, PADRÃO POPULAR - FORNECIMENTO E INSTALAÇÃO. AF_01/2020","INHI - INSTALAÇÕES HIDROS SANITÁRIAS",null,"UN",1,224.91,224.91]
["Composição Auxiliar"," 86906 ","SINAPI","TORNEIRA CROMADA DE MESA, 1/2\u0094 OU 3/4\u0094, PARA LAVATÓRIO, PADRÃO POPULAR - FORNECIMENTO E INSTALAÇÃO. AF_01/2020","INHI - INSTALAÇÕES HIDROS SANITÁRIAS",null,"UN",1,62.33,62.33]
["Composição Auxiliar"," 86884 ","SINAPI","ENGATE FLEXÍVEL EM PLÁSTICO BRANCO, 1/2\u0094 X 30CM - FORNECIMENTO E INSTALAÇÃO. AF_01/2020","INHI - INSTALAÇÕES HIDROS SANITÁRIAS",null,"UN",1,7.26,7.26]
["Composição Auxiliar"," 86882 ","SINAPI","SIFÃO DO TIPO GARRAFA/COPO EM PVC 1.1/4  X 1.1/2\u0094 - FORNECIMENTO E INSTALAÇÃO. AF_01/2020","INHI - INSTALAÇÕES HIDROS SANITÁRIAS",null,"UN",1,17.690000000000001,17.690000000000001]
["Composição Auxiliar"," 86904 ","SINAPI","LAVATÓRIO LOUÇA BRANCA SUSPENSO, 29,5 X 39CM OU EQUIVALENTE, PADRÃO POPULAR - FORNECIMENTO E INSTALAÇÃO. AF_01/2020","INHI - INSTALAÇÕES HIDROS SANITÁRIAS",null,"UN",1,131.72999999999999,131.72999999999999]
["Composição Auxiliar"," 86879 ","SINAPI","VÁLVULA EM PLÁSTICO 1\u0094 PARA PIA, TANQUE OU LAVATÓRIO, COM OU SEM LADRÃO - FORNECIMENTO E INSTALAÇÃO. AF_01/2020","INHI - INSTALAÇÕES HIDROS SANITÁRIAS",null,"UN",1,5.9,5.9]
[]
[]
[]
[" 7.1 ","Código","Banco","Descrição","Tipo",null,"Und","Quant.","Valor Unit","Total"]
["Composição"," 87692 ","SINAPI","CONTRAPISO EM ARGAMASSA TRAÇO 1:4 (CIMENTO E AREIA), PREPARO MANUAL, APLICADO EM ÁREAS SECAS SOBRE LAJE, NÃO ADERIDO, ACABAMENTO NÃO REFORÇADO, ESPESSURA 5CM. AF_07/2021","PISO - PISOS",null,"m²",1,47.06,47.06]
["Composição Auxiliar"," 87373 ","SINAPI","ARGAMASSA TRAÇO 1:4 (EM VOLUME DE CIMENTO E AREIA MÉDIA ÚMIDA) PARA CONTRAPISO, PREPARO MANUAL. AF_08/2019","SEDI - SERVIÇOS DIVERSOS",null,"m³",6.0699999999999997E-2,647.62,39.31]
["Composição Auxiliar"," 88309 ","SINAPI","PEDREIRO COM ENCARGOS COMPLEMENTARES","SEDI - SERVIÇOS DIVERSOS",null,"H",0.28499999999999998,19.36,5.51]
["Composição Auxiliar"," 88316 ","SINAPI","SERVENTE COM ENCARGOS COMPLEMENTARES","SEDI - SERVIÇOS DIVERSOS",null,"H",0.14199999999999999,15.78,2.2400000000000002]
[]
[]
[]
[" 7.2 ","Código","Banco","Descrição","Tipo",null,"Und","Quant.","Valor Unit","Total"]
["Composição"," 11370 ","ORSE","Revestimento cerâmico para piso ou parede, 45 x 45 cm, c/ piso porcelanato, elemento taupe, ELIANE ou similar, PEI 4, aplicado com argamassa industrializada ac-ii, rejuntado, exclusive regularização de base ou emboço","Azulejos e Cerâmicas",null,"m2",1,62.18,62.18]
["Composição Auxiliar"," 3407 ","ORSE","Argamassa industrializada AC-II, Votomassa ou similar","Argamassas",null,"kg",4,1.25,5]
["Composição Auxiliar"," 10549 ","ORSE","Encargos Complementares - Servente","Provisórios",null,"h",0.45,3.68,1.65]
["Composição Auxiliar"," 10550 ","ORSE","Encargos Complementares - Pedreiro","Provisórios",null,"h",0.55000000000000004,3.55,1.95]
["Insumo"," 2540 ","ORSE","Rejunte colorido flexivel  para revestimentos cerâmicos","Material",null,"kg",0.38,3.5,1.33]
["Insumo"," 12226 ","ORSE","Cerâmica 45 x 45cm, piso porcelanato, elemento taupe AC, PEI 4,  marca ELIANE OU SIMILAR","Material",null,"m2",1.05,38.42,40.340000000000003]
["Insumo"," 00004750 ","SINAPI","PEDREIRO (HORISTA)","Mão de Obra",null,"H",0.55000000000000004,13.45,7.39]
["Insumo"," 00006111 ","SINAPI","SERVENTE DE OBRAS","Mão de Obra",null,"H",0.45,10.050000000000001,4.5199999999999996]
[]
[]
[]
[" 7.3 ","Código","Banco","Descrição","Tipo",null,"Und","Quant.","Valor Unit","Total"]
["Composição"," 10175 ","ORSE","Piso alta resistencia, branco, e=12mm, aplicado com juntas, polido até o esmeril 400 e encerado, exclusive argamassa de regualrização","Pisos : Cimentados, em Concreto Simples, tipo Tech-Stone e de Alta Resistência",null,"m2",1,93.9,93.9]
["Insumo"," 4440 ","ORSE","Piso alta resistencia, cor branca, e=12mm, aplicado com juntas, polido até o esmeril 400 e encerado","Serviços",null,"m2",1,70,70]
["Insumo"," 00001380 ","SINAPI","CIMENTO BRANCO","Material",null,"KG",10,2.39,23.9]
[]
[]
[]
[" 8.1 ","Código","Banco","Descrição","Tipo",null,"Und","Quant.","Valor Unit","Total"]
["Composição"," 93141 ","SINAPI","PONTO DE TOMADA RESIDENCIAL INCLUINDO TOMADA 10A/250V, CAIXA ELÉTRICA, ELETRODUTO, CABO, RASGO, QUEBRA E CHUMBAMENTO. AF_01/2016","INEL - INSTALAÇÃO ELÉTRICA/ELETRIFICAÇÃO E ILUMINAÇÃO EXTERNA",null,"UN",1,149.83000000000001,149.83000000000001]
["Composição Auxiliar"," 91937 ","SINAPI","CAIXA OCTOGONAL 3\" X 3\", PVC, INSTALADA EM LAJE - FORNECIMENTO E INSTALAÇÃO. AF_12/2015","INEL - INSTALAÇÃO ELÉTRICA/ELETRIFICAÇÃO E ILUMINAÇÃO EXTERNA",null,"UN",0.375,9.35,3.5]
["Composição Auxiliar"," 91852 ","SINAPI","ELETRODUTO FLEXÍVEL CORRUGADO, PVC, DN 20 MM (1/2\"), PARA CIRCUITOS TERMINAIS, INSTALADO EM PAREDE - FORNECIMENTO E INSTALAÇÃO. AF_12/2015","INEL - INSTALAÇÃO ELÉTRICA/ELETRIFICAÇÃO E ILUMINAÇÃO EXTERNA",null,"M",2.2000000000000002,7.35,16.170000000000002]
["Composição Auxiliar"," 91926 ","SINAPI","CABO DE COBRE FLEXÍVEL ISOLADO, 2,5 MM², ANTI-CHAMA 450/750 V, PARA CIRCUITOS TERMINAIS - FORNECIMENTO E INSTALAÇÃO. AF_12/2015","INEL - INSTALAÇÃO ELÉTRICA/ELETRIFICAÇÃO E ILUMINAÇÃO EXTERNA",null,"M",12.6,3.8,47.88]
["Composição Auxiliar"," 91996 ","SINAPI","TOMADA MÉDIA DE EMBUTIR (1 MÓDULO), 2P+T 10 A, INCLUINDO SUPORTE E PLACA - FORNECIMENTO E INSTALAÇÃO. AF_12/2015","INEL - INSTALAÇÃO ELÉTRICA/ELETRIFICAÇÃO E ILUMINAÇÃO EXTERNA",null,"UN",1,23.58,23.58]
["Composição Auxiliar"," 91940 ","SINAPI","CAIXA RETANGULAR 4\" X 2\" MÉDIA (1,30 M DO PISO), PVC, INSTALADA EM PAREDE - FORNECIMENTO E INSTALAÇÃO. AF_12/2015","INEL - INSTALAÇÃO ELÉTRICA/ELETRIFICAÇÃO E ILUMINAÇÃO EXTERNA",null,"UN",1,11.85,11.85]
["Composição Auxiliar"," 91842 ","SINAPI","ELETRODUTO FLEXÍVEL CORRUGADO, PVC, DN 20 MM (1/2\"), PARA CIRCUITOS TERMINAIS, INSTALADO EM LAJE - FORNECIMENTO E INSTALAÇÃO. AF_12/2015","INEL - INSTALAÇÃO ELÉTRICA/ELETRIFICAÇÃO E ILUMINAÇÃO EXTERNA",null,"M",2,5.54,11.08]
["Composição Auxiliar"," 90447 ","SINAPI","RASGO EM ALVENARIA PARA ELETRODUTOS COM DIAMETROS MENORES OU IGUAIS A 40 MM. AF_05/2015","INHI - INSTALAÇÕES HIDROS SANITÁRIAS",null,"M",2.2000000000000002,4.93,10.84]
["Composição Auxiliar"," 90456 ","SINAPI","QUEBRA EM ALVENARIA PARA INSTALAÇÃO DE CAIXA DE TOMADA (4X4 OU 4X2). AF_05/2015","INHI - INSTALAÇÕES HIDROS SANITÁRIAS",null,"UN",1,3.04,3.04]
["Composição Auxiliar"," 90466 ","SINAPI","CHUMBAMENTO LINEAR EM ALVENARIA PARA RAMAIS/DISTRIBUIÇÃO COM DIÂMETROS MENORES OU IGUAIS A 40 MM. AF_05/2015","INHI - INSTALAÇÕES HIDROS SANITÁRIAS",null,"M",2.2000000000000002,9.9499999999999993,21.89]
[]
[]
[]
[" 8.2 ","Código","Banco","Descrição","Tipo",null,"Und","Quant.","Valor Unit","Total"]
["Composição"," 93128 ","SINAPI","PONTO DE ILUMINAÇÃO RESIDENCIAL INCLUINDO INTERRUPTOR SIMPLES, CAIXA ELÉTRICA, ELETRODUTO, CABO, RASGO, QUEBRA E CHUMBAMENTO (EXCLUINDO LUMINÁRIA E LÂMPADA). AF_01/2016","INEL - INSTALAÇÃO ELÉTRICA/ELETRIFICAÇÃO E ILUMINAÇÃO EXTERNA",null,"UN",1,119.74,119.74]
["Composição Auxiliar"," 91937 ","SINAPI","CAIXA OCTOGONAL 3\" X 3\", PVC, INSTALADA EM LAJE - FORNECIMENTO E INSTALAÇÃO. AF_12/2015","INEL - INSTALAÇÃO ELÉTRICA/ELETRIFICAÇÃO E ILUMINAÇÃO EXTERNA",null,"UN",0.375,9.35,3.5]
["Composição Auxiliar"," 91852 ","SINAPI","ELETRODUTO FLEXÍVEL CORRUGADO, PVC, DN 20 MM (1/2\"), PARA CIRCUITOS TERMINAIS, INSTALADO EM PAREDE - FORNECIMENTO E INSTALAÇÃO. AF_12/2015","INEL - INSTALAÇÃO ELÉTRICA/ELETRIFICAÇÃO E ILUMINAÇÃO EXTERNA",null,"M",2.2000000000000002,7.35,16.170000000000002]
["Composição Auxiliar"," 91924 ","SINAPI","CABO DE COBRE FLEXÍVEL ISOLADO, 1,5 MM², ANTI-CHAMA 450/750 V, PARA CIRCUITOS TERMINAIS - FORNECIMENTO E INSTALAÇÃO. AF_12/2015","INEL - INSTALAÇÃO ELÉTRICA/ELETRIFICAÇÃO E ILUMINAÇÃO EXTERNA",null,"M",8.4,2.57,21.58]
["Composição Auxiliar"," 91940 ","SINAPI","CAIXA RETANGULAR 4\" X 2\" MÉDIA (1,30 M DO PISO), PVC, INSTALADA EM PAREDE - FORNECIMENTO E INSTALAÇÃO. AF_12/2015","INEL - INSTALAÇÃO ELÉTRICA/ELETRIFICAÇÃO E ILUMINAÇÃO EXTERNA",null,"UN",1,11.85,11.85]
["Composição Auxiliar"," 91842 ","SINAPI","ELETRODUTO FLEXÍVEL CORRUGADO, PVC, DN 20 MM (1/2\"), PARA CIRCUITOS TERMINAIS, INSTALADO EM LAJE - FORNECIMENTO E INSTALAÇÃO. AF_12/2015","INEL - INSTALAÇÃO ELÉTRICA/ELETRIFICAÇÃO E ILUMINAÇÃO EXTERNA",null,"M",2,5.54,11.08]
["Composição Auxiliar"," 91953 ","SINAPI","INTERRUPTOR SIMPLES (1 MÓDULO), 10A/250V, INCLUINDO SUPORTE E PLACA - FORNECIMENTO E INSTALAÇÃO. AF_12/2015","INEL - INSTALAÇÃO ELÉTRICA/ELETRIFICAÇÃO E ILUMINAÇÃO EXTERNA",null,"UN",1,19.79,19.79]
["Composição Auxiliar"," 90447 ","SINAPI","RASGO EM ALVENARIA PARA ELETRODUTOS COM DIAMETROS MENORES OU IGUAIS A 40 MM. AF_05/2015","INHI - INSTALAÇÕES HIDROS SANITÁRIAS",null,"M",2.2000000000000002,4.93,10.84]
["Composição Auxiliar"," 90456 ","SINAPI","QUEBRA EM ALVENARIA PARA INSTALAÇÃO DE CAIXA DE TOMADA (4X4 OU 4X2). AF_05/2015","INHI - INSTALAÇÕES HIDROS SANITÁRIAS",null,"UN",1,3.04,3.04]
["Composição Auxiliar"," 90466 ","SINAPI","CHUMBAMENTO LINEAR EM ALVENARIA PARA RAMAIS/DISTRIBUIÇÃO COM DIÂMETROS MENORES OU IGUAIS A 40 MM. AF_05/2015","INHI - INSTALAÇÕES HIDROS SANITÁRIAS",null,"M",2.2000000000000002,9.9499999999999993,21.89]
[]
[]
[]
[" 8.3 ","Código","Banco","Descrição","Tipo",null,"Und","Quant.","Valor Unit","Total"]
["Composição"," 101879 ","SINAPI","QUADRO DE DISTRIBUIÇÃO DE ENERGIA EM CHAPA DE AÇO GALVANIZADO, DE EMBUTIR, COM BARRAMENTO TRIFÁSICO, PARA 24 DISJUNTORES DIN 100A - FORNECIMENTO E INSTALAÇÃO. AF_10/2020","INEL - INSTALAÇÃO ELÉTRICA/ELETRIFICAÇÃO E ILUMINAÇÃO EXTERNA",null,"UN",1,752.44,752.44]
["Composição Auxiliar"," 87367 ","SINAPI","ARGAMASSA TRAÇO 1:1:6 (EM VOLUME DE CIMENTO, CAL E AREIA MÉDIA ÚMIDA) PARA EMBOÇO/MASSA ÚNICA/ASSENTAMENTO DE ALVENARIA DE VEDAÇÃO, PREPARO MANUAL. AF_08/2019","SEDI - SERVIÇOS DIVERSOS",null,"m³",1.44E-2,597.01,8.59]
["Composição Auxiliar"," 88264 ","SINAPI","ELETRICISTA COM ENCARGOS COMPLEMENTARES","SEDI - SERVIÇOS DIVERSOS",null,"H",0.53459999999999996,20.350000000000001,10.87]
["Composição Auxiliar"," 88247 ","SINAPI","AUXILIAR DE ELETRICISTA COM ENCARGOS COMPLEMENTARES","SEDI - SERVIÇOS DIVERSOS",null,"H",0.53459999999999996,16.12,8.61]
["Insumo"," 00012039 ","SINAPI","QUADRO DE DISTRIBUICAO COM BARRAMENTO TRIFASICO, DE EMBUTIR, EM CHAPA DE ACO GALVANIZADO, PARA 24 DISJUNTORES DIN, 100 A","Material",null,"UN",1,724.37,724.37]
[]
[]
[]
[" 9.1 ","Código","Banco","Descrição","Tipo",null,"Und","Quant.","Valor Unit","Total"]
["Composição"," 2287 ","ORSE","Pintura de acabamento com aplicação de 02 demãos de tinta PVA latex para exteriores - cores convencionais","Latex PVA",null,"m2",1,12.3,12.3]
["Composição Auxiliar"," 10549 ","ORSE","Encargos Complementares - Servente","Provisórios",null,"h",0.2,3.68,0.73]
["Composição Auxiliar"," 10553 ","ORSE","Encargos Complementares - Pintor","Provisórios",null,"h",0.4,3.75,1.5]
["Insumo"," 2231 ","ORSE","Tinta pva látex para exterior - coralmur branco gelo Tinta pva látex para exterior - coralmur branco gelo (lata de 18 l)","Material",null,"l",0.18,14.89,2.68]
["Insumo"," 00004783 ","SINAPI","PINTOR (HORISTA)","Mão de Obra",null,"H",0.4,13.45,5.38]
["Insumo"," 00006111 ","SINAPI","SERVENTE DE OBRAS","Mão de Obra",null,"H",0.2,10.050000000000001,2.0099999999999998]
[]
[]
[]
[" 9.2 ","Código","Banco","Descrição","Tipo",null,"Und","Quant.","Valor Unit","Total"]
["Composição"," 2285 ","ORSE","Pintura de acabamento com aplicação de 02 demãos de tinta PVA latex para interiores - cores convencionais - Rev 03","Latex PVA",null,"m²",1,12.3,12.3]
["Composição Auxiliar"," 10549 ","ORSE","Encargos Complementares - Servente","Provisórios",null,"h",0.2,3.68,0.73]
["Composição Auxiliar"," 10553 ","ORSE","Encargos Complementares - Pintor","Provisórios",null,"h",0.4,3.75,1.5]
["Insumo"," 2232 ","ORSE","Tinta pva látex para interior coralmur ou similar Tinta pva látex para interior coralmur ou similar (lata de 18l)","Material",null,"l",0.18,14.89,2.68]
["Insumo"," 00004783 ","SINAPI","PINTOR (HORISTA)","Mão de Obra",null,"H",0.4,13.45,5.38]
["Insumo"," 00006111 ","SINAPI","SERVENTE DE OBRAS","Mão de Obra",null,"H",0.2,10.050000000000001,2.0099999999999998]
[]
[]
[]
[" 9.3 ","Código","Banco","Descrição","Tipo",null,"Und","Quant.","Valor Unit","Total"]
["Composição"," 2308 ","ORSE","Pintura de acabamento com lixamento e aplicação de 02 demãos de esmalte sintético sobre madeira - R1","Esmalte Sintético / Óleo",null,"m2",1,16.36,16.36]
["Composição Auxiliar"," 10549 ","ORSE","Encargos Complementares - Servente","Provisórios",null,"h",0.2,3.68,0.73]
["Composição Auxiliar"," 10553 ","ORSE","Encargos Complementares - Pintor","Provisórios",null,"h",0.4,3.75,1.5]
["Insumo"," 2226 ","ORSE","Tinta esmalte sintético (coralit ou similar) Tinta esmalte sintético, coralit ou similar (galão de 3,6 l)","Material",null,"l",0.18,35.56,6.4]
["Insumo"," 00003767 ","SINAPI","LIXA EM FOLHA PARA PAREDE OU MADEIRA, NUMERO 120, COR VERMELHA","Material",null,"UN",0.4,0.85,0.34]
["Insumo"," 00004783 ","SINAPI","PINTOR (HORISTA)","Mão de Obra",null,"H",0.4,13.45,5.38]
["Insumo"," 00006111 ","SINAPI","SERVENTE DE OBRAS","Mão de Obra",null,"H",0.2,10.050000000000001,2.0099999999999998]

{"sheet":"Cronograma Físico-financeiro","index":3,"n_rows":25,"n_cols":12,"rows_kept":25,"cut":false,"hidden":false,"merged":[[5,9,5,10],[3,0,3,6],[5,3,5,4],[5,5,5,6],[5,7,5,8]]}
[]
[]
[]
[" CRONOGRAMA FISICO-FINANCEIRO"]
[]
["ITEM","DESCRIÇÃO","PREÇO TOTAL"," 1.º PERÍODO ",null," 2.º PERÍODO ",null,"3.º PERÍODO ",null," 4.º PERÍODO ",null,"TOTAL"]
[null,null,null,"PERCENTUAL","FINANCEIRO","PERCENTUAL","FINANCEIRO","PERCENTUAL","FINANCEIRO","PERCENTUAL","FINANCEIRO","PERCENTUAL"]
[]
[" 1 ","CANTEIRO DE OBRA",{"$f":"'Resumo do Orçamento'!J5","v":11482.02},0.15,{"$f":"ROUND(D9*$C9,2)","v":1722.3},0.3,{"$f":"ROUND(F9*$C9,2)","v":3444.61},0.4,{"$f":"ROUND(H9*$C9,2)","v":4592.8100000000004},0.15,{"$f":"ROUND(J9*$C9,2)","v":1722.3},{"$f":"D9+F9+H9+J9","v":1}]
[" 2 ","SERVIÇOS PRELIMINARES",{"$f":"'Resumo do Orçamento'!J6","v":3336.46},1,3336.46,0,0,0,0,0,0,{"$f":"D10+F10+H10+J10","v":1}]
[" 3 ","ALVENARIAS",{"$f":"'Resumo do Orçamento'!J7","v":14082.17},1,14082.17,0,0,0,0,0,0,1]
[" 4 ","COBERTURA",{"$f":"'Resumo do Orçamento'!J8","v":41463.910000000003},0,0,0.25,10365.98,0.75,31097.93,0,0,1]
[" 5 ","ESQUADRIAS",{"$f":"'Resumo do Orçamento'!J9","v":4475.6099999999997},0,0,1,4475.6099999999997,0,0,0,0,1]
[" 6 ","INSTALAÇÕES HIDRÁULICAS",{"$f":"'Resumo do Orçamento'!J10","v":847.43},1,847.43,0,0,0,0,0,0,1]
[" 7 ","REVESTIMENTOS",{"$f":"'Resumo do Orçamento'!J11","v":32230.26},0,0,0.5,16115.13,0.5,16115.13,0,0,1]
[" 8 ","INSTALAÇÕES ELÉTRICAS",{"$f":"'Resumo do Orçamento'!J12","v":5762.7},0,0,1,5762.7,0,0,0,0,1]
[" 9 ","PINTURAS",{"$f":"'Resumo do Orçamento'!J13","v":11539.78},0,0,0,0,0,0,1,11539.78,1]
[null,null,{"$f":"SUM(C8:C17)","v":125220.33999999998},{"$f":"E18/$C$18","v":0.1596255049299499},{"$f":"SUM(E8:E17)","v":19988.36},{"$f":"G18/$C$18","v":0.32074685310709111},{"$f":"SUM(G8:G17)","v":40164.03},{"$f":"I18/$C$18","v":0.41371769155074967},{"$f":"SUM(I8:I17)","v":51805.869999999995},{"$f":"K18/$C$18","v":0.10590995041220941},{"$f":"SUM(K8:K17)","v":13262.08}]
[null,null,null,{"$f":"D18","v":0.1596255049299499},{"$f":"E18","v":19988.36},{"$f":"D19+F18","v":0.48037235803704104},{"$f":"E19+G18","v":60152.39},{"$f":"F19+H18","v":0.8940900495877907},{"$f":"G19+I18","v":111958.26},{"$f":"H19+J18","v":1},{"$f":"I19+K18","v":125220.34}]
[]
[]
[{"$nulls":7},120]
[{"$nulls":7},{"$f":"4*30","v":120}]
[{"$nulls":7},{"$f":"H23+30+15+90","v":255}]
[{"$nulls":6},""]

{"sheet":"BDI","index":4,"n_rows":33,"n_cols":3,"rows_kept":33,"cut":false,"hidden":false,"merged":[[3,0,3,2],[5,0,5,2],[7,0,7,2],[19,0,19,2],[32,0,32,1]]}
[]
[]
[]
["DOCUMENTO: DETALHAMENTO DA BONIFICAÇÃO E DESPESAS INDIRETAS"]
[]
["FÓRMULA APLICADA"]
[]
["BDI = { [ ( 1 + AC / 100  + R / 100 + SG/100 ) . ( 1 + DF / 100 ) . ( 1 + L / 100 ) / ( 1 - I / 100 ) ] - 1 } . 100"]
[]
["ONDE:"]
["BDI =","Bonificação e Despesas Indiretas"]
["AC =","Administração Central"]
["SG=","Seguros e garantias"]
["DF =","Despesas Financeiras"]
["R =","Riscos"]
["L =","Lucro"]
["I =","Impostos"]
[]
[]
["EXECUÇÃO DE SERVIÇOS"]
[]
["ITEM","DESCRIÇÃO","PERCENTUAIS    (%)"]
[1,"Administração Central",4]
[2,"Seguros e garantias",0.8]
[3,"Riscos",1.27]
[4,"Despesas Financeiras",1.23]
[5,"Lucro",7.4]
[6,"Impostos",{"$f":"SUM(C29:C32)","v":11.15}]
["6.1","PIS",0.65]
["6.2","COFINS",3]
["6.3","ISS",3]
["6.4","IPRB",4.5]
["BDI",null,{"$f":"ROUND((((1+C23/100+C24/100+C25/100)*(1+C26/100)*(1+C27/100))/(1-C28/100))-1,4)","v":0.2979}]

{"sheet":"ENCARGOS SOCIAIS","index":5,"n_rows":48,"n_cols":6,"rows_kept":48,"cut":false,"hidden":false,"merged":[[9,0,9,5],[5,0,5,5],[6,0,7,0],[6,1,7,1],[6,2,6,3],[6,4,6,5],[21,0,21,5],[34,0,34,5],[42,0,42,5],[46,0,46,5],[47,0,47,1]]}
[]
[]
[]
[]
[]
["ENCARGOS SOCIAIS SOBRE A MÃO DE OBRA"]
["CÓDIGO","DESCRIÇÃO","COM DESONERAÇÃO",null,"SEM DESONERAÇÃO"]
[null,null,"HORISTA %","MENSALISTA %","HORISTA %","MENSALISTA %"]
[]
["GRUPO A"]
["A1","INSS",0,0,20,20]
["A2","SESI",1.5,1.5,1.5,1.5]
["A3","SENAI",1,1,1,1]
["A4","INCRA",0.2,0.2,0.2,0.2]
["A5","SEBRAE",0.6,0.6,0.6,0.6]
["A6","Salário Educação",2.5,2.5,2.5,2.5]
["A7","Seguro Contra Acidentes de Trabalho",3,3,3,3]
["A8","FGTS",8,8,8,8]
["A9","SECONCI",0,0,0,0]
["A","Total",{"$f":"SUM(C11:C19)","v":16.8},{"$f":"SUM(D11:D19)","v":16.8},{"$f":"SUM(E11:E19)","v":36.799999999999997},{"$f":"SUM(F11:F19)","v":36.799999999999997}]
[]
["GRUPO B"]
["B1","Repouso Semanal Remunerado",17.86,"-",17.86,"-"]
["B2","Feriados",3.93,"-",3.93,"-"]
["B3","Auxílio-enfermidade",0.85,0.66,0.85,0.66]
["B4","13° salário",10.82,8.33,10.82,8.33]
["B5","Licença-paternidade",7.0000000000000007E-2,0.06,7.0000000000000007E-2,0.06]
["B6","Faltas Justificadas",0.72,0.56000000000000005,0.72,0.56000000000000005]
["B7","Dias de chuva",1.45,"-",1.45,0]
["B8","Auxílio Acidente de Trabalho",0.1,0.08,0.1,0.08]
["B9","Férias Gozadas",9.01,6.94,9.01,6.94]
["B10","Salário Maternidade",0.03,0.02,0.03,0.02]
["B","Total ",{"$f":"SUM(C23:C32)","v":44.84},{"$f":"SUM(D23:D32)","v":16.650000000000002},{"$f":"SUM(E23:E32)","v":44.84},{"$f":"SUM(F23:F32)","v":16.650000000000002}]
[]
["GRUPO C"]
["C1","Aviso Prévio Indenizado",4.76,3.67,4.76,3.67]
["C2","Aviso Prévio Trabalhado",0.11,0.09,0.11,0.09]
["C3","Férias Indenizadas",4.3499999999999996,3.35,4.3499999999999996,3.35]
["C4","Depósito Rescisão Sem Justa Causa",3.33,2.56,3.33,2.56]
["C5","Indenização Adicional",0.4,0.31,0.4,0.31]
["C","Total ",{"$f":"SUM(C36:C40)","v":12.95},{"$f":"SUM(D36:D40)","v":9.98},{"$f":"SUM(E36:E40)","v":12.95},{"$f":"SUM(F36:F40)","v":9.98}]
[]
["GRUPO D"]
["D1","Reincidência de A sobre B",7.53,2.8,16.5,6.13]
["D2","Reincidência de Grupo A sobre Aviso Prévio Trabalhado e Reincidência do FGTS sobre Aviso Prévio Indenizado",0.4,0.31,0.42,0.33]
["D","Total",{"$f":"SUM(C44:C45)","v":7.9300000000000006},{"$f":"SUM(D44:D45)","v":3.11},{"$f":"SUM(E44:E45)","v":16.920000000000002},{"$f":"SUM(F44:F45)","v":6.46}]
[]
["T O T A L (%)",null,{"$f":"C20+C33+C41+C46","v":82.52000000000001},{"$f":"D20+D33+D41+D46","v":46.540000000000006},{"$f":"E20+E33+E41+E46","v":111.51},{"$f":"F20+F33+F41+F46","v":69.89}]